lending/lending_fUSD_20240731
["ID","MTS","AMOUNT","RATE_DAILY","PERIOD"]
[333710837,1722394239117,-189.924757,0.000105,2]
[333710839,1722394239126,-151.0,0.000105,2]
[333710841,1722394239136,-151.0,0.000105,2]
[333710842,1722394239146,-151.0,0.000105,2]
[333710844,1722394239155,-151.847396,0.000105,2]
[333710846,1722394239165,-267.192506,0.000105,2]
[333710848,1722394239175,-267.192506,0.000105,2]
[333710850,1722394239184,-267.192506,0.000105,2]
[333710852,1722394239194,-267.192506,0.000105,2]
[333710854,1722394239205,-151.0,0.000105,2]
[333710856,1722394239215,-151.0,0.000105,2]
[333710858,1722394239225,-151.0,0.000105,2]
[333710860,1722394239234,-151.0,0.000105,2]
[333710862,1722394239244,-360.19539,0.000105,2]
[333710864,1722394239254,-360.19539,0.000105,2]
[333710866,1722394239263,-151.0,0.000105,2]
[333710868,1722394239274,-151.0,0.000105,2]
[333710870,1722394239283,-484.9,0.000105,2]
[333710872,1722394239293,-484.9,0.000105,2]
[333710874,1722394239302,-484.9,0.000105,2]
[333710876,1722394239311,-484.9,0.000105,2]
[333710878,1722394239320,-360.19539,0.000105,2]
[333710880,1722394239329,-360.19539,0.000105,2]
[333710882,1722394239338,-151.0,0.000105,2]
[333710884,1722394239348,-151.0,0.000105,2]
[333710885,1722394239357,-484.9,0.000105,2]
[333710887,1722394239366,-484.9,0.000105,2]
[333710889,1722394239375,-484.9,0.000105,2]
[333710891,1722394239385,-484.9,0.000105,2]
[333710893,1722394239397,-350.036392,0.000105,2]
[333710895,1722394239407,-350.036392,0.000105,2]
[333710897,1722394239416,-492.45,0.000105,2]
[333710899,1722394239427,-492.45,0.000105,2]
[333710901,1722394239439,-350.036392,0.000105,2]
[333710903,1722394239450,-350.036392,0.000105,2]
[333710905,1722394239461,-492.45,0.000105,2]
[333710908,1722394239471,-492.45,0.000105,2]
[333710910,1722394239481,-227.666239,0.000105,2]
[333710912,1722394239492,-227.666239,0.000105,2]
[333710914,1722394239502,-227.666239,0.000105,2]
[333710916,1722394239513,-227.666239,0.000105,2]
[333710918,1722394239523,-702.18408,0.000105,2]
[333710920,1722394239532,-702.18408,0.000105,2]
[333710922,1722394239543,-702.18408,0.000105,2]
[333710924,1722394239552,-702.18408,0.000105,2]
[333710926,1722394239561,-702.18408,0.000105,2]
[333710928,1722394239572,-702.18408,0.000105,2]
[333710930,1722394239582,-702.18408,0.000105,2]
[333710932,1722394239592,-702.18408,0.000105,2]
[333710934,1722394239602,-571.230395,0.000105,2]
[333710936,1722394239613,-571.230395,0.000105,2]
[333710938,1722394239623,-571.230395,0.000105,2]
[333710940,1722394239633,-571.230395,0.000105,2]
[333710942,1722394239642,-571.230395,0.000105,2]
[333710944,1722394239652,-571.230395,0.000105,2]
[333710946,1722394239662,-151.0,0.000105,2]
[333710948,1722394239671,-151.0,0.000105,2]
[333710950,1722394239680,-151.0,0.000105,2]
[333710952,1722394239690,-151.0,0.000105,2]
[333710953,1722394239699,-151.0,0.000105,2]
[333710955,1722394239708,-151.0,0.000105,2]
[333710957,1722394239718,-151.0,0.000105,2]
[333710959,1722394239727,-226.404698,0.000105,2]
[333710961,1722394239737,-151.0,0.000105,2]
[333710964,1722394239749,-151.0,0.000105,2]
[333710965,1722394239757,-280.720812,0.000105,2]
[333710967,1722394239766,-383.040539,0.000105,2]
[333710969,1722394239776,-383.040539,0.000105,2]
[333710971,1722394239785,-383.040539,0.000105,2]
[333710973,1722394239795,-383.040539,0.000105,2]
[333710975,1722394239804,-383.040539,0.000105,2]
[333710977,1722394239813,-383.040539,0.000105,2]
[333710979,1722394239823,-383.040539,0.000105,2]
[333710981,1722394239832,-383.040539,0.000105,2]
[333710983,1722394239841,-151.0,0.000105,2]
[333710985,1722394239850,-151.0,0.000105,2]
[333710987,1722394239860,-723.305745,0.000105,2]
[333710989,1722394239869,-723.305745,0.000105,2]
[333710991,1722394239878,-723.305745,0.000105,2]
[333710993,1722394239888,-242.45,0.000105,2]
[333710995,1722394239897,-924.290453,0.000105,2]
[333710996,1722394239906,-924.290453,0.000105,2]
[333710998,1722394239916,-924.290453,0.000105,2]
[333711000,1722394239926,-242.45,0.000105,2]
[333711002,1722394239935,-924.290453,0.000105,2]
[333711004,1722394239945,-242.45,0.000105,2]
[333711006,1722394239954,-242.45,0.000105,2]
[333711008,1722394239964,-723.305745,0.000105,2]
[333711010,1722394239973,-723.305745,0.000105,2]
[333711012,1722394239983,-723.305745,0.000105,2]
[333711014,1722394239992,-924.290453,0.000105,2]
[333711016,1722394240001,-924.290453,0.000105,2]
[333711018,1722394240011,-242.45,0.000105,2]
[333711020,1722394240020,-924.290453,0.000105,2]
[333711022,1722394240030,-242.45,0.000105,2]
[333711024,1722394240038,-924.290453,0.000105,2]
[333711026,1722394240048,-242.45,0.000105,2]
[333711028,1722394240057,-242.45,0.000105,2]
[333711029,1722394240067,-151.0,0.000105,2]
[333711031,1722394240076,-151.0,0.000105,2]
[333711033,1722394240085,-151.0,0.000105,2]
[333711035,1722394240095,-151.0,0.000105,2]
[333711037,1722394240104,-151.0,0.000105,2]
[333711039,1722394240114,-151.0,0.000105,2]
[333711041,1722394240123,-151.0,0.000105,2]
[333711043,1722394240133,-151.0,0.000105,2]
[333711045,1722394240142,-160.128819,0.000105,2]
[333711047,1722394240152,-151.0,0.000105,2]
[333711049,1722394240161,-151.0,0.000105,2]
[333711050,1722394240170,-151.0,0.000105,2]
[333711052,1722394240179,-151.0,0.000105,2]
[333711054,1722394240189,-151.0,0.000105,2]
[333711056,1722394240198,-151.0,0.000105,2]
[333711058,1722394240207,-151.0,0.000105,2]
[333711060,1722394240217,-151.0,0.000105,2]
[333711061,1722394240227,-370.688009,0.000105,2]
[333711063,1722394240236,-370.688009,0.000105,2]
[333711065,1722394240246,-370.688009,0.000105,2]
[333711067,1722394240255,-370.688009,0.000105,2]
[333711069,1722394240265,-370.688009,0.000105,2]
[333711071,1722394240274,-151.0,0.000105,2]
[333711073,1722394240283,-151.0,0.000105,2]
[333711075,1722394240293,-151.0,0.000105,2]
[333711077,1722394240303,-370.688009,0.000105,2]
[333711079,1722394240312,-151.0,0.000105,2]
[333711081,1722394240322,-151.0,0.000105,2]
[333711083,1722394240331,-370.688009,0.000105,2]
[333711084,1722394240340,-370.688009,0.000105,2]
[333711086,1722394240349,-370.688009,0.000105,2]
[333711089,1722394240359,-370.688009,0.000105,2]
[333711091,1722394240368,-151.0,0.000105,2]
[333711093,1722394240377,-151.0,0.000105,2]
[333711095,1722394240386,-151.0,0.000105,2]
[333711097,1722394240399,-151.0,0.000105,2]
[333711099,1722394240409,-161.430197,0.000105,2]
[333711101,1722394240419,-668.583871,0.000105,2]
[333711102,1722394240428,-228.45156667,0.000105,2]
[333711107,1722394240462,-286.18192272,0.000105,2]
[333711116,1722394240554,-153.95038161,0.000105,2]
[333711118,1722394240563,-509.33666187,0.000105,2]
[333711121,1722394240575,-159.24720913,0.000105,2]
[333711122,1722394240584,-171.75279087,0.000105,2]
[333711125,1722394240595,-496.83108013,0.000105,2]
[333711126,1722394240604,-565.5744817,0.000105,2]
[333711129,1722394240615,-103.0093893,0.000105,2]
[333711130,1722394240625,-447.0906202,0.000105,2]
[333711133,1722394240636,-221.4932508,0.000105,2]
[333711135,1722394240645,-668.583871,0.000105,2]
[333711137,1722394240655,-405.00298299,0.000105,2]
[333711139,1722394240666,-263.58088801,0.000105,2]
[333711141,1722394240675,-151.13079788,0.000105,2]
[333711148,1722394240747,-184.63818397,0.000104,2]
[333711150,1722394240757,-517.45307312,0.000105,2]
[333711151,1722394240766,-668.583871,0.000105,2]
[333711153,1722394240775,-151.0,0.000105,2]
[333711155,1722394240785,-151.0,0.000105,2]
[333711158,1722394240796,-151.0,0.000105,2]
[333711159,1722394240805,-151.0,0.000105,2]
[333711161,1722394240815,-151.0,0.000105,2]
[333711163,1722394240824,-243.614795,0.000105,2]
[333711165,1722394240833,-151.0,0.000105,2]
[333711167,1722394240843,-151.0,0.000105,2]
[333711169,1722394240852,-151.0,0.000105,2]
[333711171,1722394240861,-286.4702,0.000105,2]
[333711173,1722394240870,-151.0,0.000105,2]
[333711175,1722394240880,-151.0,0.000105,2]
[333711177,1722394240889,-151.0,0.000105,2]
[333711179,1722394240898,-151.0,0.000105,2]
[333711181,1722394240907,-527.821,0.000105,2]
[333711183,1722394240915,-527.821,0.000105,2]
[333711184,1722394240925,-202.874331,0.000105,2]
[333711186,1722394240934,-527.821,0.000105,2]
[333711188,1722394240943,-527.821,0.000105,2]
[333711190,1722394240953,-178.25361,0.000105,2]
[333711192,1722394240962,-527.821,0.000105,2]
[333711194,1722394240971,-527.821,0.000105,2]
[333711196,1722394240980,-527.821,0.000105,2]
[333711198,1722394240989,-527.821,0.000105,2]
[333711200,1722394240998,-527.821,0.000105,2]
[333711203,1722394241007,-527.821,0.000105,2]
[333711204,1722394241015,-183.360999,0.000105,2]
[333711207,1722394241024,-183.360999,0.000105,2]
[333711209,1722394241033,-183.360999,0.000105,2]
[333711211,1722394241043,-183.360999,0.000105,2]
[333711213,1722394241051,-183.360999,0.000105,2]
[333711215,1722394241061,-183.360999,0.000105,2]
[333711217,1722394241069,-183.360999,0.000105,2]
[333711232,1722394241261,-183.360999,0.000105,2]
[333711233,1722394241270,-151.0,0.000105,2]
[333711234,1722394241279,-151.0,0.000105,2]
[333711235,1722394241288,-151.0,0.000105,2]
[333711236,1722394241297,-151.359594,0.000105,2]
[333711237,1722394241306,-151.0,0.000105,2]
[333711238,1722394241315,-151.0,0.000105,2]
[333711239,1722394241325,-151.0,0.000105,2]
[333711240,1722394241334,-151.0,0.000105,2]
[333711241,1722394241346,-151.0,0.000105,2]
[333711242,1722394241355,-151.0,0.000105,2]
[333711243,1722394241364,-151.0,0.000105,2]
[333711244,1722394241374,-151.0,0.000105,2]
[333711245,1722394241383,-151.0,0.000105,2]
[333711246,1722394241394,-151.0,0.000105,2]
[333711247,1722394241404,-151.0,0.000105,2]
[333711248,1722394241413,-151.0,0.000105,2]
[333711249,1722394241422,-347.893972,0.000105,2]
[333711251,1722394241431,-347.893972,0.000105,2]
[333711253,1722394241441,-347.893972,0.000105,2]
[333711255,1722394241450,-347.893972,0.000105,2]
[333711257,1722394241459,-347.893972,0.000105,2]
[333711259,1722394241471,-217.989126,0.000105,2]
[333711260,1722394241480,-347.893972,0.000105,2]
[333711262,1722394241490,-217.989126,0.000105,2]
[333711264,1722394241500,-217.989126,0.000105,2]
[333711266,1722394241509,-217.989126,0.000105,2]
[333711268,1722394241519,-151.0,0.000105,2]
[333711270,1722394241528,-151.0,0.000105,2]
[333711272,1722394241538,-151.0,0.000105,2]
[333711274,1722394241548,-655.770042,0.000105,2]
[333711276,1722394241558,-217.989126,0.000105,2]
[333711278,1722394241569,-217.989126,0.000105,2]
[333711281,1722394241580,-655.770042,0.000105,2]
[333711283,1722394241590,-217.989126,0.000105,2]
[333711285,1722394241600,-655.770042,0.000105,2]
[333711287,1722394241612,-217.989126,0.000105,2]
[333711289,1722394241623,-655.770042,0.000105,2]
[333711291,1722394241632,-655.770042,0.000105,2]
[333711293,1722394241642,-655.770042,0.000105,2]
[333711295,1722394241653,-151.0,0.000105,2]
[333711297,1722394241662,-151.0,0.000105,2]
[333711299,1722394241672,-151.0,0.000105,2]
[333711301,1722394241681,-151.0,0.000105,2]
[333711303,1722394241691,-183.450117,0.000105,2]
[333711305,1722394241702,-183.450117,0.000105,2]
[333711307,1722394241712,-183.450117,0.000105,2]
[333711309,1722394241722,-183.450117,0.000105,2]
[333711311,1722394241732,-183.450117,0.000105,2]
[333711313,1722394241742,-183.450117,0.000105,2]
[333711315,1722394241752,-183.450117,0.000105,2]
[333711317,1722394241763,-183.450117,0.000105,2]
[333711319,1722394241774,-183.450117,0.000105,2]
[333711322,1722394241786,-183.450117,0.000105,2]
[333711324,1722394241796,-959.772485,0.000105,2]
[333711325,1722394241806,-530.35946782,0.000105,2]
[333711370,1722394242246,-429.41301718,0.000105,2]
[333711372,1722394242257,-835.57718207,0.000105,2]
[333711374,1722394242271,-124.19530293,0.000105,2]
[333711376,1722394242281,-959.772485,0.000105,2]
[333711378,1722394242290,-490.40420396,0.000105,2]
[333711380,1722394242302,-469.36828104,0.000105,2]
[333711382,1722394242311,-959.772485,0.000105,2]
[333711384,1722394242320,-959.772485,0.000105,2]
[333711386,1722394242330,-959.772485,0.000105,2]
[333711388,1722394242340,-616.31668,0.000105,2]
[333711390,1722394242350,-616.31668,0.000105,2]
[333711391,1722394242360,-616.31668,0.000105,2]
[333711393,1722394242369,-616.31668,0.000105,2]
[333711395,1722394242379,-616.31668,0.000105,2]
[333711398,1722394242391,-616.31668,0.000105,2]
[333711400,1722394242403,-616.31668,0.000105,2]
[333711402,1722394242414,-616.31668,0.000105,2]
[333711404,1722394242423,-659.129814,0.000105,2]
[333711406,1722394242432,-659.129814,0.000105,2]
[333711407,1722394242442,-659.129814,0.000105,2]
[333711409,1722394242452,-659.129814,0.000105,2]
[333711411,1722394242462,-659.129814,0.000105,2]
[333711413,1722394242476,-659.129814,0.000105,2]
[333711415,1722394242487,-659.129814,0.000105,2]
[333711417,1722394242496,-659.129814,0.000105,2]
[333711419,1722394242507,-151.0,0.000105,2]
[333711420,1722394242519,-151.0,0.000105,2]
[333711421,1722394242529,-151.0,0.000105,2]
[333711422,1722394242540,-151.0,0.000105,2]
[333711423,1722394242552,-151.0,0.000105,2]
[333711424,1722394242563,-151.0,0.000105,2]
[333711425,1722394242575,-580.523713,0.000105,2]
[333711426,1722394242587,-580.523713,0.000105,2]
[333711427,1722394242596,-151.0,0.000105,2]
[333711428,1722394242607,-580.523713,0.000105,2]
[333711429,1722394242619,-151.0,0.000105,2]
[333711430,1722394242629,-580.523713,0.000105,2]
[333711431,1722394242640,-151.0,0.000105,2]
[333711432,1722394242651,-580.523713,0.000105,2]
[333711433,1722394242662,-580.523713,0.000105,2]
[333711434,1722394242671,-580.523713,0.000105,2]
[333711435,1722394242681,-580.523713,0.000105,2]
[333711436,1722394242693,-196.06,0.000105,2]
[333711437,1722394242703,-196.06,0.000105,2]
[333711438,1722394242714,-196.06,0.000105,2]
[333711439,1722394242723,-196.06,0.000105,2]
[333711440,1722394242732,-208.041635,0.000105,2]
[333711441,1722394242743,-208.041635,0.000105,2]
[333711442,1722394242752,-208.041635,0.000105,2]
[333711443,1722394242762,-208.041635,0.000105,2]
[333711444,1722394242772,-196.06,0.000105,2]
[333711445,1722394242783,-196.06,0.000105,2]
[333711446,1722394242793,-196.06,0.000105,2]
[333711447,1722394242804,-196.06,0.000105,2]
[333711448,1722394242814,-442.528333,0.000105,2]
[333711449,1722394242825,-208.041635,0.000105,2]
[333711450,1722394242835,-442.528333,0.000105,2]
[333711451,1722394242847,-208.041635,0.000105,2]
[333711453,1722394242857,-442.528333,0.000105,2]
[333711454,1722394242867,-442.528333,0.000105,2]
[333711455,1722394242878,-208.041635,0.000105,2]
[333711456,1722394242888,-208.041635,0.000105,2]
[333711457,1722394242898,-442.528333,0.000105,2]
[333711458,1722394242909,-442.528333,0.000105,2]
[333711459,1722394242918,-442.528333,0.000105,2]
[333711460,1722394242927,-442.528333,0.000105,2]
[333711461,1722394242936,-244.903594,0.000105,2]
[333711462,1722394242946,-244.903594,0.000105,2]
[333711463,1722394242955,-244.903594,0.000105,2]
[333711464,1722394242965,-244.903594,0.000105,2]
[333711465,1722394242974,-151.0,0.000105,2]
[333711466,1722394242984,-244.903594,0.000105,2]
[333711467,1722394242994,-244.903594,0.000105,2]
[333711468,1722394243004,-244.903594,0.000105,2]
[333711469,1722394243013,-244.903594,0.000105,2]
[333711470,1722394243023,-1340.368713,0.000105,2]
[333711471,1722394243032,-1340.368713,0.000105,2]
[333711472,1722394243042,-1340.368713,0.000105,2]
[333711473,1722394243051,-1340.368713,0.000105,2]
[333711474,1722394243060,-1340.368713,0.000105,2]
[333711475,1722394243070,-151.0,0.000105,2]
[333711476,1722394243079,-1340.368713,0.000105,2]
[333711477,1722394243088,-151.0,0.000105,2]
[333711478,1722394243098,-1340.368713,0.000105,2]
[333711479,1722394243107,-198.821983,0.000105,2]
[333711480,1722394243117,-1340.368713,0.000105,2]
[333711481,1722394243127,-1340.368713,0.000105,2]
[333711482,1722394243136,-1340.368713,0.000105,2]
[333711483,1722394243146,-151.0,0.000105,2]
[333711484,1722394243155,-151.0,0.000105,2]
[333711485,1722394243165,-151.0,0.000105,2]
[333711486,1722394243174,-151.0,0.000105,2]
[333711487,1722394243185,-151.0,0.000105,2]
[333711488,1722394243194,-151.0,0.000105,2]
[333711489,1722394243203,-228.318441,0.000105,2]
[333711490,1722394243213,-151.0,0.000105,2]
[333711491,1722394243223,-151.0,0.000105,2]
[333711492,1722394243232,-151.0,0.000105,2]
[333711493,1722394243241,-151.0,0.000105,2]
[333711494,1722394243251,-151.0,0.000105,2]
[333711495,1722394243260,-151.0,0.000105,2]
[333711497,1722394243270,-1201.546258,0.000105,2]
[333711499,1722394243279,-151.0,0.000105,2]
[333711501,1722394243288,-1201.546258,0.000105,2]
[333711503,1722394243297,-151.0,0.000105,2]
[333711505,1722394243307,-1201.546258,0.000105,2]
[333711507,1722394243316,-151.0,0.000105,2]
[333711509,1722394243324,-38.40077977,0.000105,2]
[333711511,1722394243338,-530.90005515,0.000105,2]
[333711515,1722394243747,-202.734574,0.0001047,2]
[333711516,1722394243757,-202.734574,0.0001047,2]
[333711517,1722394243766,-202.734574,0.0001047,2]
[333711518,1722394243775,-632.24542308,0.000105,2]
[333711519,1722394243784,-157.298371,0.000105,2]
[333711520,1722394243793,-1201.546258,0.000105,2]
[333711521,1722394243802,-1201.546258,0.000105,2]
[333711522,1722394243811,-199.15996792,0.000105,2]
[333711531,1722394246408,-202.734574,0.0001047,2]
[333711534,1722394246418,-151.0,0.0001047,2]
[333711536,1722394246428,-151.0,0.0001047,2]
[333711538,1722394246439,-151.0,0.0001047,2]
[333711540,1722394246450,-151.0,0.0001047,2]
[333711542,1722394246459,-1002.38629008,0.000105,2]
[333711544,1722394246470,-1201.546258,0.000105,2]
[333711545,1722394246479,-497.97300958,0.000105,2]
[333711546,1722394246492,-703.57324842,0.000105,2]
[333711547,1722394246502,-1201.546258,0.000105,2]
[333711548,1722394246512,-151.0,0.000105,2]
[333711549,1722394246524,-151.0,0.000105,2]
[333711551,1722394246534,-6.29519265,0.000105,2]
[333711557,1722394246671,-249.13109135,0.000105,2]
[333711559,1722394246681,-840.07031609,0.000105,2]
[333711562,1722394246693,-1489.74302991,0.000105,2]
[333711563,1722394246702,-2329.813346,0.000105,2]
[333711564,1722394246713,-2329.813346,0.000105,2]
[333711565,1722394246722,-972.32479813,0.000105,2]
[333711566,1722394246733,-1357.48854787,0.000105,2]
[333711567,1722394246743,-475.60413689,0.000105,2]
[333711570,1722394485889,448.41034557,0.00027,120]
[333711573,1722394643436,5000.0,0.000265,120]
[333711574,1722394651573,155.68,0.0001337,30]
[333711575,1722394685142,5000.0,0.000137,30]
[333711578,1722394951814,10000.0,0.00025,60]
[333711579,1722394962923,10000.0,0.00025,60]
[333711580,1722394969504,10000.0,0.00027,120]
[333711581,1722394975943,10000.0,0.00027,120]
[333711582,1722394994408,10000.0,0.00027,120]
[333711583,1722395012443,10000.0,0.00025,60]
[333711584,1722395030262,10000.0,0.00025,60]
[333711585,1722395038164,10000.0,0.00025,60]
[333711588,1722395129596,155.68,0.0001337,30]
[333711602,1722395432668,-279.27,8.219e-05,2]
[333711603,1722395432679,-800.0,9.468e-05,2]
[333711604,1722395432688,-378.92848727,9.489e-05,2]
[333711605,1722395432700,-7531.91732472,9.489e-05,2]
[333711606,1722395432711,-13099.87418801,9.489e-05,2]
[333711607,1722395432959,-1849.66472927,9.581e-05,2]
[333711608,1722395432972,-1485.14527073,9.581e-05,2]
[333711609,1722395432982,-200.0,9.595e-05,2]
[333711610,1722395432992,-912.54912927,9.7e-05,2]
[333711611,1722395433038,-705.97287073,9.7e-05,2]
[333711612,1722395433048,-356.02,9.778e-05,2]
[333711613,1722395433059,-425.76,9.778e-05,2]
[333711614,1722395433069,-150.0,9.778e-05,2]
[333711615,1722395433078,-150.0,9.778e-05,2]
[333711616,1722395433088,-150.0,9.778e-05,2]
[333711617,1722395433097,-276.67,9.778e-05,2]
[333711618,1722395433107,-150.0,9.778e-05,2]
[333711619,1722395433116,-150.0,9.778e-05,2]
[333711620,1722395433126,-425.76,9.778e-05,2]
[333711621,1722395433136,-203.88967021,9.778e-05,2]
[333711622,1722395433147,-329.39032979,9.778e-05,2]
[333711623,1722395433158,-530.23,9.778e-05,2]
[333711624,1722395433167,-424.55,9.78e-05,2]
[333711625,1722395433177,-530.23,9.78e-05,2]
[333711626,1722395433187,-150.0,9.78e-05,2]
[333711627,1722395433197,-150.0,9.78e-05,2]
[333711628,1722395433207,-150.0,9.799e-05,2]
[333711629,1722395433217,-8510.3275,9.8e-05,2]
[333711630,1722395433227,-1000.0,9.8e-05,2]
[333711631,1722395433236,-500.7884,9.8e-05,2]
[333711632,1722395433247,-9999.99,9.8e-05,2]
[333711633,1722395433257,-499.99,9.8e-05,2]
[333711634,1722395433268,-425.76,9.878e-05,2]
[333711635,1722395433278,-150.0,9.878e-05,2]
[333711636,1722395433288,-150.0,9.878e-05,2]
[333711637,1722395433298,-150.0,9.878e-05,2]
[333711638,1722395433309,-356.02,9.878e-05,2]
[333711639,1722395433318,-1250.0,0.0001,2]
[333711640,1722395433328,-834.21,0.00010055,2]
[333711641,1722395433338,-420.45,0.00010055,2]
[333711642,1722395433348,-420.45,0.00010055,2]
[333711643,1722395433358,-834.21,0.00010055,2]
[333711644,1722395433367,-601.76,0.00010055,2]
[333711645,1722395433377,-417.87,0.00010055,2]
[333711646,1722395433386,-154.91,0.00010178,2]
[333711647,1722395433396,-530.28,0.00010178,2]
[333711648,1722395433406,-150.73,0.00010178,2]
[333711649,1722395433415,-317.77,0.00010178,2]
[333711650,1722395433425,-151.08,0.00010178,2]
[333711651,1722395433434,-428.44,0.00010178,2]
[333711652,1722395433444,-357.64,0.00010178,2]
[333711653,1722395433453,-152.69,0.00010178,2]
[333711654,1722395433463,-150.94,0.00010192,2]
[333711655,1722395433472,-355.75,0.00010192,2]
[333711656,1722395433482,-530.28,0.00010192,2]
[333711657,1722395433491,-530.28,0.00010192,2]
[333711658,1722395433501,-530.28,0.00010192,2]
[333711659,1722395433511,-530.28,0.00010192,2]
[333711660,1722395433521,-530.28,0.00010192,2]
[333711661,1722395433530,-150.0,0.00010293,2]
[333711662,1722395433540,-150.0,0.00010293,2]
[333711663,1722395433549,-150.0,0.00010293,2]
[333711664,1722395433558,-1173.3653,0.000103,2]
[333711665,1722395433568,-180.3218,0.000103,2]
[333711666,1722395433577,-10000.0,0.0001037,2]
[333711667,1722395433587,-1000.0,0.0001037,2]
[333711668,1722395433596,-179.99,0.0001037,2]
[333711669,1722395433606,-4289.745,0.000104,2]
[333711670,1722395433615,-283977.057,0.000104,2]
[333711671,1722395433625,-3000.0,0.000104,2]
[333711672,1722395433634,-279.27,0.00010447,2]
[333711673,1722395433643,-32598.53,0.0001047,2]
[333711674,1722395433653,-3345.721419,0.000105,2]
[333711675,1722395433662,-12808.15443299,0.000105,2]
[333711676,1722395433672,-280.04,0.000105,2]
[333711677,1722395433682,-150.0,0.000105,2]
[333711678,1722395433691,-150.0,0.000105,2]
[333711679,1722395433701,-150.0,0.000105,2]
[333711680,1722395433710,-356.05,0.000105,2]
[333711681,1722395433719,-150.0,0.000105,2]
[333711682,1722395433729,-501.26888838,0.00010515,2]
[333711683,1722395433738,-501.26888829,0.00010543,2]
[333711684,1722395433747,-501.26888829,0.0001057,2]
[333711685,1722395433757,-501.26888829,0.00010598,2]
[333711686,1722395433767,-1923.0,0.000106,2]
[333711687,1722395433777,-4409.92832178,0.00010614,2]
[333711688,1722395433786,-151.0,0.00010615,2]
[333711689,1722395433797,-151.0,0.00010615,2]
[333711690,1722395433809,-228.051158,0.00010615,2]
[333711691,1722395433819,-151.0,0.00010615,2]
[333711692,1722395433829,-219.950594,0.00010615,2]
[333711693,1722395433838,-151.0,0.00010615,2]
[333711694,1722395433848,-151.0,0.00010615,2]
[333711695,1722395433857,-151.0,0.00010615,2]
[333711696,1722395433867,-151.0,0.00010615,2]
[333711697,1722395433878,-238.675,0.00010615,2]
[333711698,1722395433887,-151.026486,0.00010615,2]
[333711699,1722395433896,-151.026486,0.00010615,2]
[333711700,1722395433906,-210.021836,0.00010615,2]
[333711701,1722395433915,-151.455171,0.00010615,2]
[333711702,1722395433924,-2941.795665,0.00010615,2]
[333711703,1722395433933,-9811.425934,0.00010615,2]
[333711704,1722395433943,-543.570799,0.00010615,2]
[333711705,1722395433952,-23776.939251,0.00010615,2]
[333711706,1722395433961,-16190.947954,0.00010615,2]
[333711707,1722395433971,-820.245796,0.00010615,2]